[Event "Summer Prague Open-A 2024"]
[Site "Prague"]
[Date "2024.08.05"]
[Round "5.1"]
[White "Pulpan, Jakub"]
[Black "Prokofiev, Valentyn"]
[Result "*"]
[Annotator "RC"]
[WhiteElo "2378"]
[BlackElo "2381"]
[PlyCount "23"]
[EventDate "2024.08.02"]
[EventType "swiss"]
[EventCountry "CZE"]
[SourceTitle "playchess.com"]
[Source "ChessBase"]
[SourceQuality "1"]
[TimeControl "40/5400+30:1800+30"]

1. e4 {[%emt 0:00:08]} c5 {[%emt 0:00:06]} 2. Nf3 {[%emt 0:00:25]} Nc6 {[%emt 0:00:03]} 3. Nc3 {[%emt 0:05:06]} g6 {[%emt 0:00:04]} 4. d4 {[%emt 0:00:53]} cxd4 {[%emt 0:00:05]} 5. Nxd4 {[%emt 0:00:04]} Bg7 {[%emt 0:00:05]} 6. Be3 {[%emt 0:00:04]} Nf6 {[%emt 0:00:04]} 7. Bc4 {[%emt 0:00:17]} Qa5 {[%emt 0:00:05]} 8. O-O {[%emt 0:15:51]} O-O {[%emt 0:00:04]} 9. Bb3 {[%emt 0:00:59]} d6 {[%emt 0:00:09]} 10. h3 {[%emt 0:01:23]} Bd7 {[%emt 0:00:07]} 11. Nde2 {[%emt 0:03:01]} b5 {[%emt 0:06:58]} 12. Ng3 {[%emt 0:06:33]} *

[Event "Summer Prague Open-A 2024"]
[Site "Prague"]
[Date "2024.08.05"]
[Round "5.3"]
[White "Golenia, Jan"]
[Black "Nothnagel, Marian Can"]
[Result "0-1"]
[Annotator "RC"]
[ECO "E71"]
[WhiteElo "2188"]
[BlackElo "2410"]
[PlyCount "132"]
[EventDate "2024.08.02"]
[EventType "swiss"]
[EventCountry "CZE"]
[SourceTitle "playchess.com"]
[Source "ChessBase"]
[SourceQuality "1"]
[TimeControl "40/5400+30:1800+30"]

1. d4 {[%emt 0:07:41]} Nf6 {[%emt 0:00:03]} 2. c4 {[%emt 0:00:17]} g6 {[%emt 0:00:04]} 3. Nc3 {[%emt 0:00:30]} Bg7 {[%emt 0:00:04]} 4. e4 {[%emt 0:00:06]} d6 {[%emt 0:00:03]} 5. h3 {[%emt 0:00:04]} O-O {[%emt 0:00:04]} 6. Bg5 {[%emt 0:00:02]} c5 {[%emt 0:00:14]} 7. d5 {[%emt 0:00:22]} e6 {[%emt 0:00:05]} 8. Bd3 {[%emt 0:00:25]} exd5 {[%emt 0:00:30]} 9. exd5 {[%emt 0:00:07]} Nbd7 {[%emt 0:03:03]} 10. Nf3 {[%emt 0:01:24]} Re8+ {[%emt 0:01:32]} 11. Be3 {[%emt 0:01:02]} Ne5 {[%emt 0:09:05]} 12. Nxe5 {[%emt 0:11:51]} Rxe5 {[%emt 0:00:18]} 13. O-O {[%emt 0:00:48]} Rxe3 {[%emt 0:00:03]} 14. fxe3 {[%emt 0:00:07]} Qe7 {[%emt 0:00:37]} 15. Qe2 {[%emt 0:14:35]} Nd7 {[%emt 0:00:38]} 16. Rf4 {[%emt 0:02:28]} Ne5 {[%emt 0:00:19]} 17. Raf1 {[%emt 0:00:07]} Bd7 {[%emt 0:07:14]} 18. Ne4 {[%emt 0:10:51]} f5 {[%emt 0:02:34]} 19. Nc3 {[%emt 0:00:42]} Bh6 {[%emt 0:02:32]} 20. Bc2 {[%emt 0:00:50]} Re8 {[%emt 0:04:07]} 21. R4f2 {[%emt 0:01:26]} Qh4 {[%emt 0:00:16]} 22. b3 {[%emt 0:16:13]} Qg3 {[%emt 0:43:55]} 23. Nd1 {[%emt 0:01:18]} a6 {[%emt 0:02:23]} 24. a4 {[%emt 0:00:05]} b6 {[%emt 0:00:08]} 25. Qe1 {[%emt 0:05:26]} Qh4 {[%emt 0:04:21]} 26. Re2 {[%emt 0:01:24]} Qg5 {[%emt 0:00:18]} 27. Nb2 {[%emt 0:02:19]} Rf8 {[%emt 0:02:26]} 28. Nd3 {[%emt 0:00:34]} Nxd3 {[%emt 0:00:06]} 29. Bxd3 {[%emt 0:00:04]} Bg7 {[%emt 0:04:13]} 30. Rf3 {[%emt 0:03:23]} Be5 {[%emt 0:01:39]} 31. a5 {[%emt 0:01:45]} Rb8 {[%emt 0:00:05]} 32. b4 {[%emt 0:00:37]} Qd8 {[%emt 0:00:48]} 33. Ra2 {[%emt 0:02:08]} b5 {[%emt 0:00:20]} 34. bxc5 {[%emt 0:00:45]} dxc5 {[%emt 0:00:05]} 35. Qd1 {[%emt 0:07:08]} b4 {[%emt 0:00:20]} 36. Bc2 {[%emt 0:00:56]} Qh4 {[%emt 0:00:53]} 37. Bb3 {[%emt 0:00:48]} Bd6 {[%emt 0:01:21]} 38. Re2 {[%emt 0:05:29]} Qe4 {[%emt 0:01:06]} 39. Qc2 {[%emt 0:00:45]} Qe5 {[%emt 0:00:05]} 40. g3 {[%emt 0:00:22]} Re8 {[%emt 0:01:31]} 41. Kg2 {[%emt 0:32:01]} h5 {[%emt 0:31:25]} 42. Qb2 {[%emt 0:00:00]} Qe7 {[%emt 0:00:07]} 43. Bc2 {[%emt 0:00:00]} h4 {[%emt 0:01:11]} 44. gxh4 {[%emt 0:00:00]} Qxh4 {[%emt 0:00:08]} 45. Qa1 {[%emt 0:00:00]} Be5 {[%emt 0:02:50]} 46. Qa2 {[%emt 0:00:00]} g5 {[%emt 0:02:31]} 47. Kf1 {[%emt 0:00:36]} g4 {[%emt 0:00:24]} 48. Rg2 {[%emt 0:00:03]} Bg7 {[%emt 0:00:57]} 49. Rfg3 {[%emt 0:02:22]} Be5 {[%emt 0:01:17]} 50. Rf3 {[%emt 0:00:01]} Kh8 {[%emt 0:00:56]} 51. hxg4 {[%emt 0:00:25]} Qh1+ {[%emt 0:00:20]} 52. Kf2 {[%emt 0:02:00]} fxg4 {[%emt 0:00:03]} 53. Qb1 {[%emt 0:01:02]} Qxb1 {[%emt 0:03:34]} 54. Bxb1 {[%emt 0:00:03]} gxf3 {[%emt 0:00:07]} 55. Rg6 {[%emt 0:00:48]} Ba4 {[%emt 0:01:55]} 56. Rxa6 {[%emt 0:00:27]} Bd1 {[%emt 0:00:22]} 57. Rc6 {[%emt 0:01:19]} b3 {[%emt 0:00:04]} 58. a6 {[%emt 0:00:21]} Bc2 {[%emt 0:00:08]} 59. Re6 {[%emt 0:00:12]} Ra8 {[%emt 0:00:06]} 60. Rxe5 {[%emt 0:00:27]} Bxb1 {[%emt 0:00:11]} 61. d6 {[%emt 0:00:04]} Bg6 {[%emt 0:00:29]} 62. Rxc5 {[%emt 0:00:41]} b2 {[%emt 0:00:05]} 63. d7 {[%emt 0:00:07]} Bf5 {[%emt 0:01:33]} 64. a7 {[%emt 0:00:51]} Bxd7 {[%emt 0:00:14]} 65. Rh5+ {[%emt 0:00:11]} Kg7 {[%emt 0:00:04]} 66. Rh1 {[%emt 0:00:01]} Bf5 {[%emt 0:00:09]} 0-1

[Event "Summer Prague Open-A 2024"]
[Site "Prague"]
[Date "2024.08.05"]
[Round "5.4"]
[White "Garcia Roman, Daniel"]
[Black "Veleshnja, Zino"]
[Result "1/2-1/2"]
[Annotator "TA"]
[ECO "A17"]
[WhiteElo "2397"]
[BlackElo "2252"]
[PlyCount "29"]
[EventDate "2024.08.02"]
[EventType "swiss"]
[EventCountry "CZE"]
[SourceTitle "playchess.com"]
[Source "ChessBase"]
[SourceQuality "1"]
[TimeControl "40/5400+30:1800+30"]

{[%evp 10,29,0,16,30,21,33,31,31,29,56,28,31,29,38,24,58,25,27,11,3,13]} 1. Nf3 {[%emt 0:07:32]} Nf6 {[%emt 0:00:11]} 2. c4 {[%emt 0:00:51]} e6 {[%emt 0:00:18]} 3. Nc3 {[%emt 0:00:43]} Bb4 {[%emt 0:02:55]} 4. Qc2 {[%emt 0:25:17]} O-O {[%emt 0:02:46]} 5. a3 {[%emt 0:14:14]} Bxc3 {[%emt 0:03:55]} 6. Qxc3 {[%emt 0:00:06]} d5 {[%emt 0:01:53]} 7. e3 {[%emt 0:03:53]} c5 {[%emt 0:08:59]} 8. b4 {[%emt 0:11:51]} b6 {[%emt 0:29:54] White is slightly better.} 9. Bb2 {[%emt 0:00:26]} Bb7 {[%emt 0:00:24]} 10. Be2 {[%emt 0:00:31]} Nbd7 {[%emt 0:02:30][%cal Oe6e5]} 11. cxd5 {[%emt 0:06:41]} Bxd5 {[%emt 0:05:25]} 12. O-O {[%emt 0:01:59]} Re8 {[%emt 0:03:23]} 13. bxc5 {[%emt 0:12:28]} Nxc5 {[%emt 0:01:38][%cal Oe6e5]} 14. Qb4 {[%emt 0:03:48]} Rc8 {[%emt 0:06:51]} 15. Rac1 {[%emt 0:02:01] Weighted Error Value: White=0.09 (flawless) /Black=0.12 (very precise) .  Inaccurate:     	White=2     	Black=2      OK:         	White=6     	Black=3} 1/2-1/2

[Event "Summer Prague Open-A 2024"]
[Site "Prague"]
[Date "2024.08.05"]
[Round "5.5"]
[White "Galymbek, Alikhan"]
[Black "Anwesh, Upadhyaya"]
[Result "0-1"]
[Annotator "TA"]
[ECO "C50"]
[WhiteElo "1970"]
[BlackElo "2373"]
[PlyCount "115"]
[EventDate "2024.08.02"]
[EventType "swiss"]
[EventCountry "CZE"]
[SourceTitle "playchess.com"]
[Source "ChessBase"]
[SourceQuality "1"]
[TimeControl "40/5400+30:1800+30"]

{[%evp 16,115,22,23,25,24,28,16,25,0,11,-25,-13,-20,0,0,0,0,0,-12,0,0,5,-74,-68,-56,-65,-92,-95,-92,-91,-87,-89,-90,-87,-91,-100,-108,-112,-131,-110,-117,-111,-138,-139,-155,-135,-169,-171,-166,-154,-168,-165,-196,-211,-239,-224,-247,-224,-226,-179,-211,-210,-304,-308,-367,-359,-431,-469,-458,-437,-592,-566,-1106,-976,-1059,-1013,-1098,-1073,-1406,-1066,-1893,-1849,-1533,-1485,-29975,-29978,-29975,-29976,-29981,-29980,-29980,-29981,-29981,-29982,-29982,-29983,-29983,-29984,-29985,-29986,-29986]} 1. e4 {[%emt 0:02:18]} e5 {[%emt 0:15:31]} 2. Nf3 {[%emt 0:00:16]} Nc6 {[%emt 0:00:14]} 3. Bc4 {[%emt 0:00:10]} Nf6 {[%emt 0:00:19]} 4. d3 {[%emt 0:00:05]} Bc5 {[%emt 0:00:31]} 5. Nc3 {[%emt 0:01:08]} h6 {[%emt 0:04:49]} 6. O-O d6 7. h3 {[%emt 0:00:56]} Be6 {[%emt 0:04:56]} 8. Bxe6 {[%emt 0:02:42]} fxe6 {[%emt 0:00:09]} 9. Na4 {[%emt 0:00:07]} Bb6 {[%emt 0:00:40]} 10. c3 {[%emt 0:01:52]} O-O {[%emt 0:01:47]} 11. Qe2 {[%emt 0:01:36]} Qe8 {[%emt 0:05:32] The position is equal.} 12. Nxb6 {[%emt 0:00:10]} axb6 {[%emt 0:00:05]} 13. d4 {[%emt 0:14:05]} exd4 {[%emt 0:11:33]} 14. Nxd4 {[%emt 0:02:42]} e5 {[%emt 0:07:58]} 15. Nf5 {[%emt 0:11:47]} Qe6 {[%emt 0:00:59][%cal Og8h7]} 16. a3 {[%emt 0:05:22]} Na5 {[%emt 0:04:00]} 17. f3 {[%emt 0:06:24]} Nb3 {[%emt 0:02:17]} 18. Rb1 {[%emt 0:00:07]} d5 {[%emt 0:04:00]} 19. Qc2 {[%emt 0:09:22]} (19. Be3 $11) 19... dxe4 $17 {[%emt 0:03:58]} 20. fxe4 {[%emt 0:00:07]} Nc5 {[%emt 0:02:12]} 21. Ng3 {[%emt 0:03:32] [#]} Nfxe4 $1 {[%emt 0:04:02] Black is more active. A dynamic duo of knights.} 22. Rxf8+ {[%emt 0:02:08]} (22. Nxe4 Rxf1+ 23. Kxf1 Qf5+ 24. Kg1 Qxe4 (24... Nxe4 25. Be3 $17) 25. Qxe4 Nxe4 $11) 22... Rxf8 {[%emt 0:00:12]} 23. Nxe4 {[%emt 0:00:03]} Qg6 {[%emt 0:02:22]} 24. Be3 {[%emt 0:02:34]} Qxe4 {[%emt 0:01:02]} 25. Qxe4 {[%emt 0:00:06]} Nxe4 {[%emt 0:00:03][%mdl 4096] Endgame. KRB-KRN} 26. Rd1 {[%emt 0:00:27]} Nf6 {[%emt 0:00:29]} 27. Kf2 {[%emt 0:12:42]} b5 {[%emt 0:02:18]} 28. Ke2 {[%emt 0:00:31]} Kf7 {[%emt 0:00:07]} 29. Bc5 {[%emt 0:01:27]} Ra8 {[%emt 0:01:28]} 30. Bg1 {[%emt 0:00:58]} Ke6 {[%emt 0:00:25]} 31. Kf3 {[%emt 0:00:57]} Rf8 {[%emt 0:01:53]} 32. Ke2 {[%emt 0:09:15]} Nd5 {[%emt 0:02:17]} 33. g3 {[%emt 0:00:10] Prevents Nf4+} h5 {[%emt 0:01:37]} 34. h4 {[%emt 0:00:14]} Nf6 {[%emt 0:04:49]} 35. Rd3 {[%emt 0:02:12]} b6 {[%emt 0:01:19]} 36. Ke3 {[%emt 0:06:58]} Ra8 {[%emt 0:02:29]} 37. Rd2 {[%emt 0:01:18]} Ke7 {[%emt 0:01:04]} 38. Kf3 {[%emt 0:00:45]} Rd8 {[%emt 0:00:55]} 39. Re2 {[%emt 0:00:49]} (39. Rxd8 $142 Kxd8 40. b3) 39... Rd3+ $19 {[%emt 0:00:31]} 40. Re3 {[%emt 0:01:11]} Rxe3+ {[%emt 0:00:20]} 41. Bxe3 {[%emt 0:30:06] KB-KN} Ke6 {[%emt 0:30:09]} 42. Bg5 {[%emt 0:00:00]} Kf5 {[%emt 0:00:00]} 43. b3 {[%emt 0:00:00]} c5 {[%emt 0:00:00] ...c4 is the strong threat.} 44. Bd2 {[%emt 0:00:00]} Ne4 {[%emt 0:00:00]} 45. Be1 {[%emt 0:00:00]} c4 {[%emt 0:00:00]} 46. bxc4 {[%emt 0:00:00]} bxc4 {[%emt 0:00:00]} 47. Ke3 {[%emt 0:00:00]} b5 {[%emt 0:00:00]} 48. Kf3 {[%emt 0:00:00]} Nf6 {[%emt 0:00:00]} 49. Bd2 {[%emt 0:00:00]} Nd5 {[%emt 0:00:00] Strongly threatening ...g6.} 50. Be1 {[%emt 0:00:00]} e4+ {[%emt 0:00:00] Black mates.} 51. Ke2 {[%emt 0:00:00]} Kg4 {[%emt 0:00:00]} 52. Kf2 {[%emt 0:00:00]} g6 {[%emt 0:00:00]} 53. Bd2 {[%emt 0:00:00] [#]} e3+ $1 {[%emt 0:00:00][%mdl 512]} 54. Bxe3 {[%emt 0:00:00]} Nxe3 {[%emt 0:00:00]} 55. Kxe3 {[%emt 0:00:00]} Kxg3 {[%emt 0:00:00]} 56. Kd4 {[%emt 0:00:00]} Kxh4 {[%emt 0:00:00]} 57. a4 {[%emt 0:00:00]} bxa4 {[%emt 0:00:00]} 58. Kxc4 {[%emt 0:00:00] Weighted Error Value: White=0.56/Black=0.04 (flawless) .  Mistake:       	White=2     	---        Inaccurate:     	White=4     	---        OK:         	White=10    	Black=18     Best:        	---       	Black=3      Brilliant:      	---       	Black=1} 0-1

[Event "Summer Prague Open-A 2024"]
[Site "Prague"]
[Date "2024.08.05"]
[Round "5.6"]
[White "Tynyshtyk, Diana"]
[Black "Kulhanek, Tomas"]
[Result "1-0"]
[Annotator "TA"]
[ECO "B07"]
[WhiteElo "1935"]
[BlackElo "2317"]
[PlyCount "65"]
[EventDate "2024.08.02"]
[EventType "swiss"]
[EventCountry "CZE"]
[SourceTitle "playchess.com"]
[Source "ChessBase"]
[SourceQuality "1"]
[TimeControl "40/5400+30:1800+30"]

{[%evp 9,65,36,52,22,43,37,42,22,64,52,72,60,48,22,32,22,31,35,55,0,0,4,55,22,84,43,54,50,93,72,77,61,282,256,279,0,6,-45,115,118,356,343,29992,29993,29993,29994,29994,29995,29995,29996,29997,1260,29995,29996,29996,29997,29997,29998]} 1. e4 {[%emt 0:00:02]} d6 {[%emt 0:00:13]} 2. d4 {[%emt 0:00:04]} Nf6 {[%emt 0:00:05]} 3. Nc3 {[%emt 0:00:03]} c6 {[%emt 0:00:05]} 4. Be3 {[%emt 0:01:03]} Qa5 {[%emt 0:00:59]} 5. Bd3 {[%emt 0:08:59]} e5 {[%emt 0:00:34]} 6. f3 {[%emt 0:14:08] Inhibits Ng4.} Be7 {[%emt 0:05:57]} 7. Nge2 {[%emt 0:04:07]} O-O {[%emt 0:01:53]} 8. O-O {[%emt 0:03:31] White is slightly better.} Na6 {[%emt 0:06:41]} 9. a3 {[%emt 0:05:01]} b5 {[%emt 0:03:20]} 10. Kh1 {[%emt 0:13:02]} Qc7 {[%emt 0:03:15]} 11. f4 {[%emt 0:06:17]} b4 {[%emt 0:02:53]} 12. axb4 {[%emt 0:03:46]} Nxb4 {[%emt 0:00:07]} 13. Bc4 {[%emt 0:04:17]} d5 {[%emt 0:03:58] [#] ...exd4 would now be deadly.} 14. exd5 {[%emt 0:04:09]} (14. Bb3 $14) 14... cxd5 $11 {[%emt 0:14:01] Strongly threatening ...exf4.} 15. Bb3 {[%emt 0:00:18]} (15. fxe5 Ng4 (15... dxc4 16. exf6 Bxf6 17. Rxf6 $16) 16. Bc1 Qxc4 $19 (16... dxc4 17. h3 $17)) 15... exd4 {[%emt 0:03:36]} (15... e4 $11) 16. Nxd4 {[%emt 0:01:47]} Ba6 {[%emt 0:01:12]} (16... a6 $11 {keeps the balance.}) 17. Re1 {[%emt 0:03:57][%cal Bf1e1,Be1e5,Be5h5,Bh5h6][%mdl 32]} Rfd8 {[%emt 0:01:46]} 18. Qf3 {[%emt 0:00:34]} Qc8 {[%emt 0:05:09] Wards off Nf5} 19. Bf2 {[%emt 0:02:31]} Bc5 {[%emt 0:01:06]} 20. Nf5 {[%emt 0:01:19] White is more active.} d4 $2 {[%emt 0:08:08]} (20... Kh8 $14) 21. Re5 $18 {[%emt 0:03:19]} Kh8 {[%emt 0:21:56] [#]} 22. Nxg7 $2 {[%emt 0:10:07]} Bb7 $11 {[%emt 0:08:34][%cal Ba6b7,Bb7g2,Bg2e4][%mdl 32] Dodges Ne4} (22... Kxg7 $2 23. Ne4 Nxe4 24. Qxe4 $18) 23. Qg3 {[%emt 0:02:38]} (23. Rxc5 $1 $11 Bxf3 24. Rxc8 Raxc8 25. gxf3 Kxg7 (25... dxc3 26. bxc3 Rxc3 27. Bh4 $11) 26. Nb5) 23... Bf8 $2 {[%emt 0:02:19]} (23... dxc3 $15 {keeps the upper hand.} 24. Nf5 (24. Bxc5 $2 cxb2 25. Rb1 Rd2 $19) 24... Rg8 (24... cxb2 25. Qg7#) 25. Rxc5 cxb2) 24. Nh5 $40 {[%emt 0:01:58][%mdl 128] Black is in trouble.} Nxh5 {[%emt 0:02:31]} (24... Ng4 $16 {was necessary.} 25. Ne4 Bxe4 (25... Nxe5 $2 {is the wrong capture.} 26. Ng5 $18) 26. Rxe4 Nxc2) 25. Rxh5 $18 {[%emt 0:00:17]} dxc3 $2 {[%emt 0:00:27]} (25... Qc6 $18 26. Bxf7 Qxg2+ 27. Qxg2 Bxg2+ 28. Kxg2 dxc3 29. bxc3 Rd7) 26. Bxf7 {[%emt 0:00:34][%csl Gf7][%cal Rg3g8]} Bxg2+ {[%emt 0:00:54]} 27. Kg1 {[%emt 0:01:25][%csl Gf7][%cal Rg3g8]} Bh6 {[%emt 0:00:13]} 28. Rxh6 {[%emt 0:00:50]} Be4 {[%emt 0:00:28]} 29. f5 {[%emt 0:02:54]} Qxf5 {[%emt 0:00:49]} 30. Bg6 {[%emt 0:00:17] A strong pair of Bishops.} (30. Qxc3+ $142 Rd4 31. Bxd4+ Qf6 32. Bxf6#) 30... Qf3 {[%emt 0:00:43]} 31. Qe5+ {[%emt 0:00:57] White mates.} (31. bxc3 $2 Qh1#) 31... Kg8 {[%emt 0:00:01]} 32. Qe6+ {[%emt 0:01:21]} Kf8 {[%emt 0:00:16]} 33. Bc5+ {[%emt 0:00:09] Weighted Error Value: White=0.27 (precise) /Black=0.64.  Loses game:     	---       	Black=2      Missed win:     	White=1     	---        Mistake:       	White=2     	Black=4      Inaccurate:     	White=3     	Black=2      OK:         	White=6     	Black=4      Best:        	White=1     	Black=1} 1-0

[Event "Summer Prague Open-A 2024"]
[Site "Prague"]
[Date "2024.08.05"]
[Round "5.7"]
[White "Walek, Petr"]
[Black "Sramek, Vojtech"]
[Result "1-0"]
[Annotator "TA"]
[ECO "B95"]
[WhiteElo "2283"]
[BlackElo "2237"]
[PlyCount "71"]
[EventDate "2024.08.02"]
[EventType "swiss"]
[EventCountry "CZE"]
[SourceTitle "playchess.com"]
[Source "ChessBase"]
[SourceQuality "1"]
[TimeControl "40/5400+30:1800+30"]

{[%evp 12,71,22,0,0,0,36,0,0,0,0,6,-10,-5,-14,0,50,-25,25,15,35,32,36,0,0,0,31,24,14,45,22,40,56,52,41,31,38,25,27,39,46,12,0,8,0,0,18,0,0,-26,200,193,176,210,153,172,382,362,29987,29988,29996,29997]} 1. e4 c5 2. Nf3 d6 3. d4 cxd4 4. Nxd4 Nf6 5. Nc3 a6 6. Bg5 e6 {[%cal Be7e6,Be6e5][%mdl 32]} 7. Qe2 h6 8. Bd2 e5 9. Nb3 Be6 {The position is equal.} 10. O-O-O Nbd7 11. h3 Rc8 12. f4 {[%cal Bf2f4,Bf4f5][%mdl 32]} Be7 13. Kb1 b5 (13... exf4 $11 14. Bxf4 Rxc3 15. bxc3 Qc7) 14. g4 ({White should play} 14. Nd5 $1 $14 O-O (14... Nxd5 15. exd5 Bf5 16. Rc1 $11) 15. Ba5) 14... Qc7 (14... b4 $142 15. Nd5 Nxd5 16. exd5 Bxd5) 15. Be3 Nb6 16. Bxb6 Qxb6 17. f5 Bc4 18. Qf3 a5 19. Nd2 Bxf1 20. Nxf1 b4 21. Nd5 Nxd5 22. Rxd5 Bg5 23. Qd3 O-O 24. h4 Bf4 {[#] And now ...Rc6 would win.} 25. Nd2 $1 $36 {[%cal Bf1d2,Bd2c4,Bc4d6,Bd6c8,Bc8d6,Bd6f7,Bf7e5][%mdl 2080] White is more active.} Qf2 26. g5 Qg2 (26... Qxd2 {simplifies} 27. Qxd2 Bxd2 28. Rxd2 Rfd8) 27. Rd1 {gxh6 would now be deadly.} hxg5 28. hxg5 Bxg5 29. Rxa5 Rc5 $1 30. Nc4 Rfc8 {This costs Black the game.} (30... Rxa5 $11 31. Nxa5 d5) 31. Nxd6 $18 (31. Qxd6 Rxc4 32. a4 Rxc2 33. Qxb4 Bc1 (33... R2c4 $2 34. Qb3 $19) 34. Rxc1 Rxc1+ 35. Ka2 Qf1 36. Rd5 Ra1+ 37. Kb3 Qf3+) 31... Rxa5 32. Nxc8 Qf2 33. Nd6 {[%cal Od6f7] Black must now prevent Nxf7!} Qa7 (33... Ra7) 34. Qc4 {Black is weak on the light squares} Be3 $2 {[#]} (34... Rc5 $18 35. Qxb4 Be7) 35. Nxf7 $1 {[%mdl 512]} Bd4 (35... Bd2 36. Ng5+) 36. Nxe5+ {Weighted Error Value: White=0.10 (very precise) /Black=0.46.  Loses game:     	---       	Black=1      Mistake:       	White=1     	Black=4      Inaccurate:     	White=4     	Black=2      OK:         	White=6     	Black=9      Best:        	White=1     	Black=2      Strong:       	White=1     	Black=1      Brilliant:      	White=1     	---} 1-0

[Event "Summer Prague Open-A 2024"]
[Site "Prague"]
[Date "2024.08.05"]
[Round "5.8"]
[White "Neukirchner, Pascal"]
[Black "Skypala, Ondrej"]
[Result "0-1"]
[Annotator "NA RC"]
[ECO "A05"]
[WhiteElo "2261"]
[BlackElo "2230"]
[PlyCount "114"]
[EventDate "2024.08.02"]
[EventType "swiss"]
[EventCountry "CZE"]
[SourceTitle "playchess.com"]
[Source "ChessBase"]
[SourceQuality "1"]
[TimeControl "40/5400+30:1800+30"]

1. Nf3 {[%emt 0:00:03]} Nf6 {[%emt 0:00:05]} 2. g3 {[%emt 0:00:10]} b5 {[%emt 0:00:05]} 3. Bg2 {[%emt 0:00:05]} Bb7 {[%emt 0:00:05]} 4. O-O {[%emt 0:00:07]} e6 {[%emt 0:00:06]} 5. d3 {[%emt 0:00:06]} Be7 {[%emt 0:00:21]} 6. e4 {[%emt 0:00:39]} O-O {[%emt 0:00:16]} 7. e5 {[%emt 0:02:49]} Nd5 {[%emt 0:02:49]} 8. c4 {[%emt 0:12:39]} bxc4 {[%emt 0:00:10]} 9. dxc4 {[%emt 0:00:03]} Nb6 {[%emt 0:00:15]} 10. b3 {[%emt 0:03:36]} d5 {[%emt 0:02:38]} 11. Qc2 {[%emt 0:06:13]} c5 {[%emt 0:00:09]} 12. Rd1 {[%emt 0:04:46]} Nc6 {[%emt 0:06:13]} 13. Nc3 {[%emt 0:05:48]} d4 {[%emt 0:12:13]} 14. Ne4 {[%emt 0:11:40]} Nb4 {[%emt 0:00:56]} 15. Qb1 {[%emt 0:00:13]} Nd7 {[%emt 0:13:28]} 16. Nfg5 {[%emt 0:08:05]} g6 {[%emt 0:00:28]} 17. a3 {[%emt 0:06:34]} Nc6 {[%emt 0:01:51]} 18. f4 {[%emt 0:00:09]} Qb6 {[%emt 0:04:51]} 19. Qd3 {[%emt 0:02:18]} Rab8 {[%emt 0:07:01]} 20. Rb1 {[%emt 0:00:32]} Kg7 {[%emt 0:05:20]} 21. h4 {[%emt 0:02:27]} Qc7 {[%emt 0:03:52]} 22. Bd2 {[%emt 0:03:23]} h6 {[%emt 0:00:50]} 23. Nf3 {[%emt 0:01:02]} a5 {[%emt 0:04:12]} 24. Re1 {[%emt 0:10:25]} Rbe8 {[%emt 0:01:02]} 25. Qc2 {[%emt 0:01:45]} f6 {[%emt 0:05:01]} 26. exf6+ {[%emt 0:00:19]} Nxf6 {[%emt 0:00:09]} 27. Nf2 {[%emt 0:03:16]} Bd6 {[%emt 0:01:35]} 28. Nd3 {[%emt 0:00:03]} Ng4 {[%emt 0:01:33]} 29. Bh3 {[%emt 0:00:47]} h5 {[%emt 0:00:18]} 30. Ng5 {[%emt 0:04:37]} e5 {[%emt 0:01:15]} 31. Re2 {[%emt 0:00:46]} Ne3 {[%emt 0:07:20]} 32. Bxe3 {[%emt 0:00:02]} dxe3 {[%emt 0:00:09]} 33. Rxe3 {[%emt 0:00:15]} Nd4 {[%emt 0:00:19]} 34. Qb2 {[%emt 0:00:57]} Qc6 {[%emt 0:05:18]} 35. Bg2 {[%emt 0:00:02]} Qxg2+ {[%emt 0:00:08]} 36. Qxg2 {[%emt 0:00:04]} Bxg2 {[%emt 0:00:08]} 37. Kxg2 {[%emt 0:00:02]} exf4 {[%emt 0:00:08]} 38. Rxe8 {[%emt 0:00:25]} Rxe8 {[%emt 0:00:09]} 39. Nxf4 {[%emt 0:03:04]} Re3 {[%emt 0:01:09]} 40. b4 {[%emt 0:07:55]} axb4 {[%emt 0:00:35]} 41. axb4 {[%emt 0:32:03]} cxb4 {[%emt 0:30:07]} 42. Kf2 {[%emt 0:00:00]} Rc3 {[%emt 0:00:00]} 43. c5 {[%emt 0:00:00]} Bxf4 {[%emt 0:00:00]} 44. gxf4 {[%emt 0:00:00]} b3 {[%emt 0:00:00]} 45. Ne4 {[%emt 0:00:00]} Rf3+ {[%emt 0:00:00]} 46. Kg2 {[%emt 0:00:00]} Rxf4 {[%emt 0:00:00]} 47. Nd2 {[%emt 0:00:00]} Rxh4 {[%emt 0:00:00]} 48. Nxb3 {[%emt 0:00:00]} Nxb3 {[%emt 0:00:00]} 49. Rxb3 {[%emt 0:00:00]} Rc4 {[%emt 0:00:00]} 50. Rb7+ {[%emt 0:00:00]} Kf6 {[%emt 0:00:00]} 51. Rc7 {[%emt 0:00:00]} Ke6 {[%emt 0:00:00]} 52. Rc6+ {[%emt 0:00:00]} Kf5 {[%emt 0:00:00]} 53. Kf3 {[%emt 0:00:00]} Rc3+ {[%emt 0:00:00]} 54. Ke2 {[%emt 0:00:00]} h4 {[%emt 0:01:23]} 55. Rc8 {[%emt 0:00:27]} h3 {[%emt 0:00:19]} 56. Kd2 {[%emt 0:00:43]} Rc4 {[%emt 0:00:21]} 57. Kd3 {[%emt 0:00:20]} Rc1 {[%emt 0:00:09]} 0-1